bitfinex/quotes_ETHUSD_20251130
["timestamp","ask_amount","ask_price","bid_price","bid_amount"]
[1764516627279,0.9805,3038.8,3038.6,6.7899777]
[1764516627477,0.4952,3038.7,3038.6,3.49898843]
[1764516628993,0.4952,3038.7,3038.2,0.13183155]
[1764516629196,0.72559411,3038.2,3037.6,3.29200349]
[1764516629496,0.0186,3038.0,3037.7,3.29195478]
[1764516629711,0.0186,3038.0,3037.7,0.208]
[1764516629884,0.72559411,3038.3,3037.9,3.78504758]
[1764516630191,0.4833,3038.2,3037.9,3.78504758]
[1764516630394,0.4833,3038.2,3037.9,0.4933]
[1764516630593,0.94665776,3038.2,3037.9,3.29272351]
[1764516631190,0.94665776,3038.2,3037.9,0.001]
[1764516631495,0.04113871,3038.5,3037.9,0.001]
[1764516631496,1.26063282,3038.5,3037.9,0.001]
[1764516631695,0.04113871,3038.5,3037.9,0.001]
[1764516631991,0.04113871,3038.5,3037.9,0.4863]
[1764516633397,0.04113871,3038.5,3038.0,3.29163923]
[1764516633699,0.04313871,3038.5,3038.1,0.208]
[1764516633898,0.04313871,3038.5,3038.1,0.8923]
[1764516635592,0.04313871,3038.5,3038.2,3.29142255]
[1764516636672,0.53703871,3038.5,3038.2,3.29142255]
[1764516637678,0.53703871,3038.5,3038.1,3.69849642]
[1764516638174,0.53703871,3038.5,3038.1,3.49949642]
[1764516638485,0.43539105,3038.4,3038.1,3.49949642]
[1764516639678,0.92929105,3038.4,3038.1,3.49949642]
[1764516639918,3.87578345,3038.2,3037.9,0.001]
[1764516640087,0.43539105,3038.4,3037.9,0.001]
[1764516640088,3.47168345,3038.0,3037.9,0.001]
[1764516640612,4.3127518,3038.0,3037.9,0.001]
[1764516642207,7.60439103,3038.0,3037.9,0.001]
[1764516642418,4.3127518,3038.0,3037.9,0.001]
[1764516644085,4.35389729,3038.0,3037.9,0.001]
[1764516646814,0.92921384,3038.0,3037.9,0.001]
[1764516647011,0.39416835,3038.0,3037.9,0.001]
[1764516647216,0.047,3038.0,3037.9,0.001]
[1764516649897,0.04114413,3038.1,3037.9,0.4909]
[1764516650102,0.04114142,3038.3,3037.9,0.4909]
[1764516650317,0.53504142,3038.3,3037.9,0.001]
[1764516650628,0.4511,3038.0,3037.9,0.001]
[1764516652224,0.945,3038.0,3037.9,0.001]
[1764516653523,0.4511,3038.0,3037.9,0.001]
[1764516654224,0.944,3038.0,3037.9,0.001]
[1764516654594,0.98514549,3038.0,3037.9,0.001]
[1764516655331,0.04114549,3038.0,3037.9,0.4887]
[1764516655530,0.92829105,3038.4,3037.9,0.4887]
[1764516655531,0.04114142,3038.3,3037.9,0.4887]
[1764516655828,0.21879266,3038.2,3037.9,0.4887]
[1764516656031,0.04114413,3038.1,3037.9,0.4887]
[1764516656620,0.04114413,3038.1,3037.9,3.78042097]
[1764516658844,0.04114413,3038.1,3038.0,0.4877]
[1764516659055,0.21879266,3038.2,3038.0,0.4877]
[1764516659352,0.53024413,3038.1,3037.9,0.001]
[1764516659548,0.0103,3038.0,3037.9,0.001]
[1764516660004,0.0103,3038.0,3037.9,3.29274758]
[1764516660813,0.5032,3038.0,3037.9,0.001]
[1764516661013,0.54434549,3038.0,3037.9,0.001]
[1764516661217,0.5032,3038.0,3037.9,0.001]
[1764516662830,0.0103,3038.0,3037.9,0.001]
[1764516663630,0.04114413,3038.1,3037.9,0.001]
[1764516663817,0.4891,3038.0,3037.9,0.001]
[1764516664534,0.982,3038.0,3037.9,0.001]
[1764516664729,1.02314549,3038.0,3037.9,0.001]
[1764516664949,0.982,3038.0,3037.9,0.001]
[1764516666507,8.7566093,3038.0,3037.9,0.001]
[1764516666711,10.80712585,3038.0,3037.9,0.001]
[1764516666911,10.90712585,3038.0,3037.9,0.001]
[1764516667639,17.9320579,3038.0,3037.9,0.001]
[1764516667817,14.83368191,3038.0,3037.9,0.001]
[1764516668021,0.2031,3037.6,3037.0,0.001]
[1764516668220,0.2031,3037.6,3036.3,0.001]
[1764516668221,0.84118445,3036.8,3036.4,0.001]
[1764516668545,5.82053143,3036.8,3036.4,0.001]
[1764516668842,3.88273673,3036.8,3036.4,0.001]
[1764516669038,7.30742018,3036.8,3036.4,0.001]
[1764516670320,10.60036011,3036.8,3036.4,0.001]
[1764516671916,14.02504356,3036.8,3036.4,0.001]
[1764516672145,10.60036011,3036.8,3036.4,0.001]
[1764516673445,14.02504356,3036.8,3036.4,0.001]
[1764516673950,10.60036011,3036.8,3036.4,0.001]
[1764516678366,7.17567666,3036.8,3036.4,0.001]
[1764516678538,10.60659783,3036.8,3036.4,0.001]
[1764516679958,10.39859783,3036.8,3036.4,0.001]
[1764516680123,10.60659783,3036.8,3036.4,0.001]
[1764516680530,6.46217266,3036.8,3036.4,0.001]
[1764516680854,6.67936498,3036.8,3036.4,0.001]
[1764516681024,6.63820324,3036.8,3036.4,0.001]
[1764516681223,7.04370724,3036.8,3036.4,0.001]
[1764516682255,10.47462841,3036.8,3036.4,0.001]
[1764516683671,10.47462841,3036.8,3036.6,0.001]
[1764516690043,10.60658869,3036.8,3036.6,0.001]
[1764516696240,10.70658869,3036.8,3036.6,0.001]
[1764516696674,10.70658869,3036.8,3036.4,0.001]
[1764516696675,0.43568045,3036.6,3036.4,0.001]
[1764516696841,1.80997163,3036.6,3036.4,0.001]
[1764516697053,2.30527163,3036.6,3036.4,0.001]
[1764516697248,2.43727372,3036.6,3036.4,0.001]
[1764516698156,4.42436338,3036.5,3036.4,0.001]
[1764516698358,10.04815083,3036.5,3036.4,0.001]
[1764516698876,10.18015292,3036.5,3036.4,0.001]
[1764516701197,0.405504,3036.1,3036.0,0.001]
[1764516701473,5.71067096,3036.1,3036.0,0.001]
[1764516701649,6.78703806,3036.1,3036.0,0.001]
[1764516701850,6.87787981,3036.1,3036.0,0.001]
[1764516702051,1.56677856,3036.0,3035.7,0.001]
[1764516702372,2.09467856,3036.0,3035.7,0.001]
[1764516702883,1.16369811,3036.0,3035.7,0.001]
[1764516703068,1.16369811,3036.0,3035.9,0.4765]
[1764516703069,5.74058679,3036.0,3035.9,0.4765]
[1764516703271,9.03439443,3036.0,3035.9,0.4765]
[1764516703584,9.03439443,3036.0,3035.9,0.001]
[1764516703753,9.50229443,3036.0,3035.9,0.001]
[1764516704458,9.99759443,3036.0,3035.9,0.001]
[1764516704765,9.50229443,3036.0,3035.9,0.001]
[1764516705586,9.99759443,3036.0,3035.9,0.001]
[1764516707382,10.12960392,3036.0,3035.9,0.001]
[1764516708389,9.48592347,3036.0,3035.9,0.001]
[1764516708584,9.42630392,3036.0,3035.9,0.001]
[1764516708784,9.63430392,3036.0,3035.9,0.001]
[1764516709151,10.12960392,3036.0,3035.9,0.001]
[1764516709358,13.59560392,3036.0,3035.9,0.001]
[1764516709755,10.12960392,3036.0,3035.9,0.001]
[1764516714571,4.59709811,3035.9,3035.7,0.001]
[1764516714901,1.10195975,3035.8,3035.7,0.001]
[1764516715203,5.91157512,3035.8,3035.7,0.001]
[1764516715719,9.20559975,3035.8,3035.6,0.001]
[1764516715998,9.20559975,3035.8,3035.4,0.001]
[1764516715999,4.99769973,3035.5,3035.4,0.001]
[1764516716170,1.13109811,3035.4,3035.0,0.001]
[1764516716490,5.47429973,3035.2,3035.0,0.001]
[1764516716695,4.99769973,3035.2,3035.0,0.001]
[1764516717194,5.48659973,3035.2,3035.0,0.001]
[1764516717404,6.44778209,3035.2,3035.0,0.001]
[1764516717689,9.74245789,3035.2,3035.0,0.001]
[1764516717870,10.22845789,3035.2,3035.0,0.001]
[1764516718470,9.95045789,3035.2,3035.0,0.001]
[1764516718793,9.46155789,3035.2,3035.0,0.001]
[1764516719088,9.46155789,3035.2,3035.1,0.4635]
[1764516720318,9.25355789,3035.2,3035.1,0.4635]
[1764516720468,9.46155789,3035.2,3035.1,0.4635]
[1764516721693,9.46155789,3035.2,3035.1,0.001]
[1764516722197,9.46155789,3035.2,3035.1,0.4635]
[1764516723481,9.46155789,3035.2,3035.1,0.001]
[1764516723883,9.95045789,3035.2,3035.1,0.001]
[1764516725870,1.13109811,3035.1,3035.0,0.001]
[1764516726085,3.50567009,3035.1,3035.0,0.001]
[1764516726285,6.93250795,3035.1,3035.0,0.001]
[1764516726499,6.89132315,3035.1,3035.0,0.001]
[1764516726895,6.40532315,3035.1,3035.0,0.001]
[1764516727199,6.44650795,3035.1,3035.0,0.001]
[1764516727706,6.93250795,3035.1,3035.0,0.001]
[1764516727904,10.35732315,3035.1,3035.0,0.001]
[1764516728106,10.35732315,3035.1,3034.8,0.001]
[1764516728107,8.46369973,3034.9,3034.8,0.001]
[1764516728306,8.46369973,3034.9,3034.4,0.001]
[1764516728308,4.62229811,3034.8,3034.4,0.001]
[1764516728499,5.47729973,3034.5,3034.4,0.001]
[1764516728740,5.51849267,3034.5,3034.4,0.001]
[1764516728883,6.47442172,3034.5,3034.4,0.001]
[1764516729084,7.48926389,3034.5,3034.4,0.001]
[1764516729290,7.93307095,3034.5,3034.4,0.001]
[1764516730274,11.22850677,3034.5,3034.4,0.001]
[1764516730477,10.75857772,3034.5,3034.4,0.001]
[1764516732109,10.96657772,3034.5,3034.4,0.001]
[1764516733429,10.00097772,3034.5,3034.4,0.4635]
[1764516734133,9.59547372,3034.5,3034.4,0.9485]
[1764516734343,10.00097772,3034.5,3034.4,0.9485]
[1764516735232,11.11012632,3034.5,3034.4,0.001]
[1764516735403,0.33568045,3033.7,3033.6,0.485]
[1764516735721,4.70019573,3033.7,3033.6,0.485]
[1764516736029,4.70019573,3033.7,3033.6,0.9475]
[1764516736631,7.99650057,3033.7,3033.6,0.9475]
[1764516737718,8.40200457,3033.7,3033.6,0.9475]
[1764516739431,4.9710834,3033.7,3033.6,0.9475]
[1764516739633,5.01228721,3033.7,3033.6,0.9475]
[1764516740522,0.72559411,3033.7,3033.6,0.9475]
[1764516740702,0.76679792,3033.7,3033.6,0.9475]
[1764516741737,4.06310276,3033.7,3033.6,0.9475]
[1764516746942,0.76679792,3033.7,3033.6,0.9475]
[1764516747650,4.06310276,3033.7,3033.6,0.9475]
[1764516748028,4.59709811,3033.6,3031.9,0.1915]
[1764516748227,0.72559411,3032.0,3031.9,0.1915]
[1764516748564,4.37132855,3032.0,3031.9,0.6537]
[1764516748726,0.33568045,3031.8,3031.6,0.1915]
[1764516748916,0.72559411,3031.9,3029.7,0.52840909]
[1764516748917,0.33568045,3031.3,3030.6,0.483]
[1764516749116,0.33568045,3031.3,3029.7,0.52840909]
[1764516749117,3.43673444,3031.0,3030.9,0.6745]
[1764516749447,5.172509,3031.5,3031.4,0.5112]
[1764516749617,5.381509,3031.5,3031.4,0.5112]
[1764516749818,5.381509,3031.5,3031.4,0.9942]
[1764516750312,5.24347157,3031.5,3031.4,0.9942]
[1764516750512,1.73577456,3031.5,3031.4,0.9942]
[1764516750817,4.23329112,3031.5,3031.4,0.9942]
[1764516751743,4.56897157,3031.5,3031.4,0.9942]
[1764516751918,4.23329112,3031.5,3031.4,0.9942]
[1764516752714,4.56897157,3031.5,3031.4,0.9942]
[1764516752920,0.209,3032.0,3031.4,0.9942]
[1764516753251,0.54468045,3032.0,3031.9,0.4622]
[1764516753621,0.54468045,3032.0,3031.9,0.9452]
[1764516753814,0.209,3032.0,3031.9,0.9452]
[1764516754060,0.9911474,3032.3,3031.9,0.9452]
[1764516754246,0.9911474,3032.3,3032.2,0.6442]
[1764516754247,0.209,3032.3,3032.2,0.6442]
[1764516754552,0.93459411,3032.3,3032.2,1.1272]
[1764516754754,1.27027456,3032.3,3032.2,1.1272]
[1764516754918,4.56810129,3032.3,3032.2,1.1272]
[1764516755132,4.23242084,3032.3,3032.2,1.1272]
[1764516755467,0.04122147,3032.4,3032.2,1.1272]
[1764516755631,4.06453788,3032.4,3032.3,0.483]
[1764516755836,4.40021833,3032.4,3032.3,0.9452]
[1764516756560,4.85521008,3032.4,3032.2,0.182]
[1764516756764,0.33568045,3032.1,3031.9,0.483]
[1764516757065,3.67484013,3032.2,3031.9,0.483]
[1764516757449,4.40043424,3032.2,3032.1,0.6442]
[1764516758370,4.40043424,3032.2,3031.9,0.483]
[1764516758371,0.72559411,3032.1,3031.9,0.483]
[1764516758537,0.72559411,3032.1,3031.4,0.05]
[1764516758738,0.72559411,3032.1,3032.0,0.4622]
[1764516758959,4.06486391,3032.1,3032.0,0.4622]
[1764516759156,4.06486391,3032.1,3032.0,0.9452]
[1764516761563,0.04122555,3032.1,3032.0,0.9452]
[1764516761868,0.76681966,3032.1,3032.0,0.9452]
[1764516762037,4.06486391,3032.1,3032.0,0.9452]
[1764516767265,0.72559411,3032.3,3032.0,0.9452]
[1764516767578,0.72559411,3032.3,3032.2,0.6442]
[1764516767940,0.72559411,3032.3,3032.2,1.1272]
[1764516768577,4.02342084,3032.3,3032.2,1.1272]
[1764516769078,4.06464367,3032.3,3032.2,1.1272]
[1764516769377,4.80087993,3032.3,3032.2,0.6442]
[1764516769582,5.13656038,3032.3,3032.2,0.6442]
[1764516770174,0.72559411,3032.2,3031.8,0.483]
[1764516770342,0.04122555,3032.1,3031.8,0.483]
[1764516770755,0.04122555,3032.1,3032.0,0.4622]
[1764516770976,1.18677694,3032.1,3031.5,0.483]
[1764516771164,0.33568045,3032.0,3031.5,0.483]
[1764516771477,0.04122827,3031.9,3031.5,0.483]
[1764516771671,0.33568045,3031.9,3031.5,0.483]
[1764516771866,0.37690736,3032.0,3031.8,0.4622]
[1764516772073,3.29826181,3031.9,3031.5,0.483]
[1764516772250,3.63394226,3031.9,3031.6,0.483]
[1764516772447,3.29826181,3031.9,3031.8,0.4755]
[1764516772857,3.63394226,3031.9,3031.8,0.4755]
[1764516773050,3.63394226,3031.9,3031.8,0.4765]
[1764516773264,3.29826181,3031.9,3031.8,0.9686]
[1764516773899,3.63394226,3031.9,3031.8,0.9686]
[1764516774193,3.29826181,3031.9,3031.8,0.9686]
[1764516776774,3.33942478,3032.0,3031.8,0.9686]
[1764516776954,0.209,3032.3,3031.9,0.9676]
[1764516777154,0.209,3032.3,3032.2,0.6572]
[1764516777380,0.76681422,3032.5,3032.2,1.1493]
[1764516777678,1.2458051,3032.5,3032.4,0.4755]
[1764516778050,1.20458499,3032.5,3032.4,0.9676]
[1764516778450,4.02320334,3032.5,3032.4,0.9676]
[1764516779253,4.02320334,3032.5,3032.4,0.4755]
[1764516779449,4.35888379,3032.5,3032.4,0.4755]
[1764516779649,7.65649302,3032.5,3032.2,0.1817]
[1764516779875,0.04122147,3032.4,3032.2,0.1817]
[1764516780077,0.33568045,3032.1,3031.8,0.001]
[1764516780277,3.92806263,3032.3,3031.8,0.001]
[1764516780278,3.48128954,3032.0,3031.8,0.001]
[1764516780482,0.04122691,3032.0,3031.8,0.4931]
[1764516780683,3.33937994,3032.0,3031.9,0.4755]
[1764516780852,3.67331793,3032.0,3031.9,0.4755]
[1764516781180,4.00899838,3032.0,3031.9,0.4755]
[1764516781380,3.67331793,3032.0,3031.9,0.4755]
[1764516781585,4.00899838,3032.0,3031.9,0.4755]
[1764516781965,3.67331793,3032.0,3031.9,0.4755]
[1764516782188,4.00899838,3032.0,3031.9,0.4755]
[1764516783089,3.67506039,3032.0,3031.9,0.4755]
[1764516783467,3.67506039,3032.0,3031.9,0.9676]
[1764516783974,3.33937994,3032.0,3031.9,0.9676]
[1764516784170,3.67506039,3032.0,3031.9,0.9676]
[1764516784371,3.33937994,3032.0,3031.9,0.9676]
[1764516784682,3.33937994,3032.0,3031.9,0.4755]
[1764516784886,3.67506039,3032.0,3031.9,0.4755]
[1764516786364,3.33937994,3032.0,3031.9,0.4755]
[1764516786564,4.33880297,3032.0,3031.9,0.4755]
[1764516787270,3.67506039,3032.0,3031.9,0.4755]
[1764516787670,3.67506039,3032.0,3031.9,0.9676]
[1764516787969,0.04122691,3032.0,3031.9,0.9676]
[1764516788366,3.33937994,3032.0,3031.9,0.9676]
[1764516788567,3.33937994,3032.0,3031.9,0.4755]
[1764516788800,3.67331793,3032.0,3031.9,0.4755]
[1764516788975,4.00899838,3032.0,3031.9,0.4755]
[1764516789274,3.67331793,3032.0,3031.9,0.4755]
[1764516789474,4.00899838,3032.0,3031.9,0.4755]
[1764516789663,3.67331793,3032.0,3031.9,0.4765]
[1764516790392,0.3751649,3032.0,3031.9,0.4765]
[1764516790593,0.04122691,3032.0,3031.9,0.4765]
[1764516791467,0.04122691,3032.0,3031.9,0.9686]
[1764516791865,1.28920967,3032.4,3031.9,0.9686]
[1764516791866,0.04122283,3032.3,3031.9,0.9686]
[1764516792085,3.33904956,3032.3,3031.7,0.209]
[1764516792266,4.02361824,3032.3,3031.7,0.209]
[1764516792467,4.02361824,3032.3,3031.7,0.2795]
[1764516792983,4.35929869,3032.3,3031.7,0.2795]
[1764516793202,4.02361824,3032.3,3031.7,0.2795]
[1764516793370,0.72579151,3032.3,3031.8,3.2983706]
[1764516793570,4.74921235,3032.3,3032.2,0.0705]
[1764516794273,1.45138562,3032.3,3032.2,0.0705]
[1764516795104,4.74921235,3032.3,3031.7,3.57792756]
[1764516795269,4.74921235,3032.3,3031.7,0.2795]
[1764516795470,0.76681694,3032.3,3032.2,0.0705]
[1764516796796,4.06464367,3032.3,3032.2,0.0705]
[1764516797385,0.76681694,3032.3,3032.2,0.0705]
[1764516797783,4.06464367,3032.3,3032.2,0.0705]
[1764516798382,4.06464367,3032.3,3031.8,0.0705]
[1764516802474,0.73623638,3032.2,3031.7,0.209]
[1764516802689,0.73623638,3032.2,3031.5,3.29866276]
[1764516802690,3.4818855,3032.1,3031.5,0.209]
[1764516802882,3.44065995,3031.8,3031.5,0.209]
[1764516805106,6.73905692,3031.8,3031.3,0.0705]
[1764516805605,6.73905692,3031.8,3031.3,3.36940237]
[1764516806005,3.44065995,3031.8,3031.3,3.36940237]
[1764516806708,6.73903108,3031.8,3031.3,3.36940237]
[1764516807506,3.44065995,3031.8,3031.3,3.36940237]
[1764516808821,6.73904897,3031.8,3031.3,0.0705]
[1764516809017,6.73904897,3031.8,3031.3,3.3693921]
[1764516809319,3.44065995,3031.8,3031.3,3.3693921]
[1764516809519,6.73903429,3031.8,3031.3,0.0705]
[1764516810107,8.28874331,3031.8,3031.2,3.50797186]
[1764516811828,8.28874331,3031.8,3030.7,3.29956147]
[1764516811829,3.7763404,3031.5,3031.0,0.209]
[1764516812030,4.2554404,3031.5,3031.0,0.209]
[1764516812723,4.2554404,3031.5,3030.7,3.29956775]
[1764516812724,3.44065995,3031.5,3030.7,3.29956775]
[1764516812929,0.4791,3031.4,3030.7,3.50856775]
[1764516813424,0.33568045,3031.3,3030.7,0.209]
[1764516813722,0.33568045,3031.3,3030.6,0.001]
[1764516813723,3.89875995,3030.8,3030.6,0.001]
[1764516814226,3.66371404,3031.5,3030.6,0.001]
[1764516814227,1.60193858,3031.8,3030.7,0.141]
[1764516814424,0.72559411,3031.7,3031.1,0.0705]
[1764516815017,0.7668251,3031.7,3031.1,0.0705]
[1764516815422,3.44065995,3031.5,3031.1,0.0705]
[1764516815630,3.7779402,3031.4,3030.7,3.36997336]
[1764516815829,0.72186002,3031.3,3030.7,0.0705]
[1764516816032,3.7763404,3031.2,3030.6,0.21]
[1764516816231,4.2554404,3031.2,3030.6,0.21]
[1764516816422,0.4791,3031.1,3030.6,0.21]
[1764516816813,0.4791,3031.1,3030.6,0.001]
[1764516817002,0.943262,3031.1,3030.6,0.001]
[1764516817499,3.44065995,3030.8,3030.6,0.001]
[1764516821528,3.44065995,3030.8,3030.7,0.0705]
[1764516822630,3.44065995,3030.8,3030.6,0.001]
[1764516823848,0.4581,3030.7,3030.6,0.001]
[1764516824003,0.9372,3030.7,3030.6,0.001]
[1764516824331,3.44065995,3030.8,3030.6,0.001]
[1764516827238,3.44065995,3030.8,3030.7,0.0705]
[1764516830432,3.44065995,3030.8,3030.6,0.001]
[1764516830834,3.44065995,3030.8,3030.7,0.0705]
[1764516831035,3.44065995,3031.1,3030.7,3.44054378]
[1764516831237,3.44065995,3031.1,3030.9,0.0705]
[1764516831432,3.44065995,3031.1,3031.0,0.0705]
[1764516831634,0.72186002,3031.3,3031.0,0.0705]
[1764516831860,3.44065995,3031.5,3031.2,0.0705]
[1764516831861,3.64965995,3031.5,3031.2,0.0705]
[1764516832163,6.94836159,3031.5,3031.2,0.0705]
[1764516832347,7.42746159,3031.5,3031.2,0.0705]
[1764516832550,7.42746159,3031.5,3030.8,0.0705]
[1764516834240,7.42746159,3031.5,3030.9,3.29935002]
[1764516834436,8.55978653,3031.5,3030.9,3.29935002]
[1764516835926,8.55978653,3031.5,3030.8,0.0705]
[1764516836235,5.26108489,3031.5,3030.8,3.3699299]
[1764516836468,4.12875995,3031.5,3030.8,3.3699299]
[1764516836690,0.002,3031.7,3031.4,0.0705]
[1764516836965,0.002,3031.7,3030.9,0.0705]
[1764516837575,3.44065995,3031.5,3030.9,0.0705]
[1764516838572,3.44065995,3031.5,3031.0,6.59848234]
[1764516839072,3.44065995,3031.5,3031.1,0.209]
[1764516840282,3.44065995,3031.5,3031.2,3.29902348]
[1764516840458,3.91125995,3031.2,3030.6,0.001]
[1764516840754,0.52103507,3031.4,3030.6,0.001]
[1764516840755,3.44065995,3030.8,3030.6,0.001]
[1764516840953,3.44065995,3030.8,3030.6,3.30063604]
[1764516841141,3.44065995,3030.8,3030.6,0.001]
[1764516841347,3.44065995,3030.8,3030.6,3.30066485]
[1764516841750,3.44065995,3030.8,3030.6,0.001]
[1764516841933,3.44065995,3030.8,3030.7,0.0705]
[1764516842745,3.44065995,3030.8,3030.6,0.001]
[1764516842934,3.44065995,3030.8,3030.6,3.30066167]
[1764516844567,3.44065995,3030.8,3030.6,0.001]
[1764516845385,3.44265995,3030.8,3030.6,0.001]
[1764516846187,0.4706,3030.7,3030.6,0.001]
[1764516847598,3.92245995,3030.8,3030.6,0.001]
[1764516847885,3.44265995,3030.8,3030.7,0.0705]
[1764516850679,4.25752595,3030.8,3030.6,3.30063947]
[1764516850885,0.9504,3030.7,3030.6,0.001]
[1764516851077,0.4706,3030.7,3030.6,0.001]
[1764516851381,3.92245995,3030.8,3030.6,0.001]
[1764516851578,0.9504,3030.7,3030.6,0.001]
[1764516851772,1.38970599,3030.7,3030.6,0.001]
[1764516852355,4.68927374,3030.7,3030.6,0.001]
[1764516852659,5.41486785,3030.7,3030.6,0.001]
[1764516852864,5.7505483,3030.7,3030.6,0.001]
[1764516854985,5.41486785,3030.7,3030.6,0.001]
[1764516855496,5.45611244,3030.7,3030.6,0.001]
[1764516856263,5.45611244,3030.7,3030.5,0.001]
[1764516856264,0.72559411,3030.6,3030.5,0.001]
[1764516856468,0.72559411,3030.6,3030.3,0.001]
[1764516856469,2.58677135,3030.6,3030.3,0.001]
[1764516856669,4.2469404,3030.4,3030.3,0.001]
[1764516856892,4.4559404,3030.4,3030.3,0.001]
[1764516857192,5.59295158,3030.4,3030.3,0.001]
[1764516857671,5.25727113,3030.4,3030.3,0.001]
[1764516857877,5.59295158,3030.4,3030.3,0.001]
[1764516858177,5.25727113,3030.4,3030.3,0.001]
[1764516858896,0.002,3030.8,3030.3,0.142]
[1764516859096,0.002,3030.8,3030.7,0.0705]
[1764516860581,0.002,3030.8,3030.7,3.37006775]
[1764516860782,0.002,3030.8,3030.7,3.44056775]
[1764516863208,0.002,3030.8,3030.7,3.37006775]
[1764516864301,0.002,3030.8,3030.7,3.44056775]
[1764516866782,0.002,3030.8,3030.7,4.49816186]
[1764516867607,0.002,3030.8,3030.7,4.90366586]
[1764516868390,0.002,3030.8,3030.7,4.57166586]
[1764516868583,0.002,3030.8,3030.7,4.90366586]
[1764516877020,0.002,3030.8,3030.7,5.11166586]
[1764516877404,0.002,3030.8,3030.7,4.77966586]
[1764516877598,0.002,3030.8,3030.7,5.11166586]
[1764516882405,0.002,3030.8,3030.7,8.5514442]
[1764516883315,0.002,3030.8,3030.7,8.2194442]
[1764516886919,0.002,3030.8,3030.7,7.7434402]
[1764516887420,0.002,3030.8,3030.7,7.8139402]
[1764516890416,0.002,3030.8,3030.7,7.7434402]
[1764516893535,0.9585,3030.8,3030.7,7.4649402]
[1764516893749,0.9585,3030.8,3030.7,4.23316186]
[1764516895642,0.9585,3030.8,3030.7,3.50756775]
[1764516897121,0.4593,3030.8,3030.7,3.50756775]
[1764516897337,0.002,3030.8,3030.7,3.50756775]
[1764516897623,0.002,3030.8,3030.7,3.57806775]
[1764516899743,0.4593,3030.8,3030.7,3.50756775]
[1764516900056,0.9585,3030.8,3030.7,3.50756775]
[1764516903638,0.4593,3030.8,3030.7,3.50756775]
[1764516903844,0.002,3030.8,3030.7,3.50756775]
[1764516904856,0.002,3030.8,3030.7,3.57806775]
[1764516907155,0.4593,3030.8,3030.7,3.50756775]
[1764516907361,0.9585,3030.8,3030.7,3.50756775]
[1764516907529,0.4593,3030.8,3030.7,3.50756775]
[1764516908148,0.002,3030.8,3030.7,3.50756775]
[1764516909965,0.002,3030.8,3030.7,3.57806775]
[1764516910732,0.002,3030.8,3030.7,3.50756775]
[1764516912538,0.002,3030.8,3030.7,4.30366186]
[1764516913267,0.002,3030.8,3030.7,4.70616186]
[1764516913638,0.002,3030.8,3030.7,4.63566186]
[1764516913837,0.002,3030.8,3030.7,4.30366186]
[1764516914064,0.002,3030.8,3030.7,4.63566186]
[1764516915037,0.5012,3032.7,3030.7,4.56516186]
[1764516915232,0.4992,3032.1,3030.8,2.19049939]
[1764516915444,0.4992,3032.1,3031.2,1.05759411]
[1764516915734,0.4992,3032.1,3031.2,0.72559411]
[1764516915934,0.4992,3032.1,3031.3,0.209]
[1764516916130,0.6466,3031.3,3031.2,0.72559411]
[1764516916346,1.1458,3031.3,3031.2,0.209]
[1764516916566,1.1458,3031.3,3031.2,4.23361759]
[1764516918964,1.1458,3031.3,3031.2,4.23261759]
[1764516919466,1.1478,3031.3,3031.2,4.23261759]
[1764516920275,1.1478,3031.3,3031.2,3.50702348]
[1764516931362,0.6486,3031.3,3031.2,3.50702348]
[1764516931563,0.4593,3031.3,3031.2,3.50702348]
[1764516931884,0.9492,3031.3,3031.2,3.50702348]
[1764516938707,0.4593,3031.3,3031.2,3.50702348]
[1764516938869,0.002,3031.3,3031.2,3.50702348]
[1764516940298,0.002,3031.3,3031.2,3.57752348]
[1764516940496,0.002,3031.3,3031.2,3.50702348]
[1764516943587,0.4832,3031.3,3031.2,3.50702348]
[1764516943775,0.9731,3031.3,3031.2,3.50702348]
[1764516947105,0.9731,3031.3,3031.1,0.001]
[1764516947404,0.002,3031.3,3031.2,0.208]
[1764516947793,0.9731,3031.3,3031.2,0.208]
[1764516949301,0.9731,3031.3,3031.2,3.50702348]
[1764516950004,0.9731,3031.3,3031.2,3.29902348]
[1764516962010,0.9731,3031.3,3031.1,0.001]
[1764516962190,0.9574,3031.2,3031.1,0.209]
[1764516965519,0.9574,3031.2,3031.1,3.50813232]
[1764516965687,0.9574,3031.2,3031.1,3.30013232]
[1764516965888,0.9574,3031.2,3031.1,3.50813232]
[1764516966815,0.9574,3031.2,3031.1,0.001]
[1764516967589,0.9574,3031.2,3031.1,3.30013232]
[1764516970109,0.9574,3031.2,3031.1,0.001]
[1764516973404,1.38322571,3031.2,3031.1,0.001]
[1764516974310,5.01792964,3031.2,3031.1,0.001]
[1764516974517,4.68224919,3031.2,3031.1,0.001]
[1764516975131,5.01792964,3031.2,3031.1,0.001]
[1764516975419,1.71890616,3031.2,3031.1,0.001]
[1764516975622,1.38322571,3031.2,3031.1,0.001]
[1764516975827,1.71890616,3031.2,3031.1,0.001]
[1764516976222,5.01792964,3031.2,3031.1,0.001]
[1764516977002,5.05916743,3031.2,3031.1,0.001]
[1764516977212,4.72348698,3031.2,3031.1,0.001]
[1764516977399,5.05916743,3031.2,3031.1,0.001]
[1764516977723,1.4244635,3031.2,3031.1,0.001]
[1764516977924,1.38322571,3031.2,3031.1,0.001]
[1764516978129,0.9574,3031.2,3031.1,0.001]
[1764516978523,0.4755,3031.2,3031.1,0.001]
[1764516978723,0.002,3031.3,3031.1,0.001]
[1764516979527,0.4839,3031.3,3031.1,0.001]
[1764516982034,0.4755,3031.2,3031.1,0.001]
[1764516982521,0.9571,3031.2,3031.1,0.001]
[1764516985630,0.4755,3031.2,3031.1,0.001]
[1764516986344,0.9571,3031.2,3031.1,0.001]